[Event "*** Titled Tuesday Blitz"]
[Site "Chess.com"]
[Date "2020.11.10"]
[Round "2"]
[White "Flutaga"]
[Black "Zarikovs1999"]
[Result "0-1"]
[WhiteElo "1985"]
[BlackElo "2364"]
[TimeControl "180+1"]
[EndTime "10:17:54 PST"]
[Termination "Zarikovs1999 won by resignation"]

1. e4 {[%clk 0:02:59.5]} 1... c5 {[%clk 0:02:59.4]} 2. Nc3 {[%clk 0:02:59.1]}
2... d6 {[%clk 0:02:57.9]} 3. f4 {[%clk 0:02:59.4]} 3... g6 {[%clk 0:02:57.6]}
4. Nf3 {[%clk 0:02:59.9]} 4... Bg7 {[%clk 0:02:58.1]} 5. Bb5+ {[%clk 0:03:00.3]}
5... Bd7 {[%clk 0:02:57.3]} 6. a4 {[%clk 0:03:00.4]} 6... Nc6 {[%clk 0:02:57.1]}
7. d3 {[%clk 0:02:59.4]} 7... Nf6 {[%clk 0:02:56.9]} 8. O-O {[%clk 0:02:58.8]}
8... a6 {[%clk 0:02:52.3]} 9. Bxc6 {[%clk 0:02:58.4]} 9... Bxc6 {[%clk
0:02:52.6]} 10. a5 {[%clk 0:02:57.8]} 10... O-O {[%clk 0:02:42.2]} 11. Qe1
{[%clk 0:02:55.9]} 11... Nd7 {[%clk 0:02:27.1]} 12. Qh4 {[%clk 0:02:37.2]} 12...
e6 {[%clk 0:02:16.3]} 13. Qg3 {[%clk 0:02:32.7]} 13... f5 {[%clk 0:02:11.7]} 14.
e5 {[%clk 0:02:14]} 14... dxe5 {[%clk 0:02:03.7]} 15. fxe5 {[%clk 0:02:13.7]}
15... Bxf3 {[%clk 0:02:02.2]} 16. Qxf3 {[%clk 0:02:11.7]} 16... Nxe5 {[%clk
0:01:51.5]} 17. Qxb7 {[%clk 0:02:11.5]} 17... Qd4+ {[%clk 0:01:51.5]} 18. Kh1
{[%clk 0:02:10.9]} 18... Ng4 {[%clk 0:01:41]} 19. Qf3 {[%clk 0:01:58.9]} 19...
e5 {[%clk 0:01:33.3]} 20. h3 {[%clk 0:01:47]} 20... e4 {[%clk 0:01:33.1]} 21.
dxe4 {[%clk 0:01:42.5]} 21... fxe4 {[%clk 0:01:33.1]} 22. Qxf8+ {[%clk
0:01:33.6]} 22... Rxf8 {[%clk 0:01:27.4]} 23. Rxf8+ {[%clk 0:01:30.7]} 23...
Bxf8 {[%clk 0:01:28.1]} 24. hxg4 {[%clk 0:01:31]} 24... e3 {[%clk 0:01:22.4]}
25. Ra4 {[%clk 0:01:25.3]} 25... e2 {[%clk 0:01:02.5]} 0-1

[Event "*** Titled Tuesday Blitz"]
[Site "Chess.com"]
[Date "2020.11.10"]
[Round "2"]
[White "RobPeresian"]
[Black "ENajer77"]
[Result "1-0"]
[WhiteElo "2458"]
[BlackElo "2674"]
[TimeControl "180+1"]
[EndTime "10:17:58 PST"]
[Termination "RobPeresian won by resignation"]

1. Nf3 {[%clk 0:03:00.9]} 1... d5 {[%clk 0:02:58.2]} 2. d4 {[%clk 0:03:00.6]}
2... Nf6 {[%clk 0:02:57.3]} 3. c4 {[%clk 0:03:00.9]} 3... dxc4 {[%clk
0:02:53.7]} 4. Nc3 {[%clk 0:03:00.4]} 4... a6 {[%clk 0:02:52.8]} 5. e4 {[%clk
0:03:00.4]} 5... b5 {[%clk 0:02:49.2]} 6. a4 {[%clk 0:03:00.7]} 6... b4 {[%clk
0:02:48.3]} 7. e5 {[%clk 0:03:00.9]} 7... bxc3 {[%clk 0:02:47.6]} 8. exf6 {[%clk
0:03:00.5]} 8... cxb2 {[%clk 0:02:46.1]} 9. fxg7 {[%clk 0:03:00.7]} 9... Bxg7
{[%clk 0:02:28.6]} 10. Bxb2 {[%clk 0:02:59.6]} 10... Be6 {[%clk 0:02:14.5]} 11.
Rc1 {[%clk 0:02:51.3]} 11... Qd6 {[%clk 0:01:29.6]} 12. Bxc4 {[%clk 0:02:34.6]}
12... Qb4+ {[%clk 0:01:14.9]} 13. Qd2 {[%clk 0:02:34.3]} 13... Qxd2+ {[%clk
0:01:14.9]} 14. Nxd2 {[%clk 0:02:35.2]} 14... Bxc4 {[%clk 0:01:12.1]} 15. Rxc4
{[%clk 0:02:33.5]} 15... Nd7 {[%clk 0:01:06]} 16. O-O {[%clk 0:02:27.3]} 16...
Rb8 {[%clk 0:01:00.9]} 17. Ba3 {[%clk 0:02:23.1]} 17... Rb7 {[%clk 0:00:46.9]}
18. Re1 {[%clk 0:02:21.2]} 18... e6 {[%clk 0:00:43.4]} 19. Rc6 {[%clk
0:02:12.9]} 19... Nb8 {[%clk 0:00:42]} 20. Rc4 {[%clk 0:02:09.9]} 20... Nd7
{[%clk 0:00:36.3]} 21. Rc6 {[%clk 0:02:08.7]} 21... Bxd4 {[%clk 0:00:23]} 22.
Rxa6 {[%clk 0:02:07]} 22... Bc3 {[%clk 0:00:22]} 23. Ra8+ {[%clk 0:01:59.4]}
23... Nb8 {[%clk 0:00:21.8]} 24. Rb1 {[%clk 0:01:57.7]} 24... Rxb1+ {[%clk
0:00:12.3]} 25. Nxb1 {[%clk 0:01:57.5]} 25... Kd7 {[%clk 0:00:10.7]} 26. Nxc3
{[%clk 0:01:57.4]} 1-0

[Event "*** Titled Tuesday Blitz"]
[Site "Chess.com"]
[Date "2020.11.10"]
[Round "2"]
[White "Grischuk"]
[Black "fabianvivasz"]
[Result "1-0"]
[WhiteElo "3009"]
[BlackElo "2349"]
[TimeControl "180+1"]
[EndTime "10:17:58 PST"]
[Termination "Grischuk won on time"]

1. Nf3 {[%clk 0:03:00.9]} 1... Nf6 {[%clk 0:02:57.3]} 2. d4 {[%clk 0:03:00.3]}
2... g6 {[%clk 0:02:57]} 3. Bf4 {[%clk 0:02:58.5]} 3... Bg7 {[%clk 0:02:55.4]}
4. e3 {[%clk 0:02:59.2]} 4... d6 {[%clk 0:02:55.4]} 5. Be2 {[%clk 0:02:59.5]}
5... c5 {[%clk 0:02:54.1]} 6. c3 {[%clk 0:02:58.8]} 6... O-O {[%clk 0:02:48.6]}
7. Nbd2 {[%clk 0:02:56.4]} 7... Nc6 {[%clk 0:02:46.4]} 8. O-O {[%clk 0:02:52.7]}
8... cxd4 {[%clk 0:02:41]} 9. exd4 {[%clk 0:02:52.8]} 9... Be6 {[%clk 0:02:34]}
10. Re1 {[%clk 0:02:50]} 10... Qb6 {[%clk 0:02:25.9]} 11. Qb1 {[%clk 0:02:23.7]}
11... Rac8 {[%clk 0:01:56.4]} 12. a4 {[%clk 0:02:16.2]} 12... a5 {[%clk
0:01:22.6]} 13. h3 {[%clk 0:02:15.3]} 13... Nd5 {[%clk 0:01:00.7]} 14. Bh2
{[%clk 0:02:12.6]} 14... Rfe8 {[%clk 0:00:48.3]} 15. Bd3 {[%clk 0:02:08.9]}
15... Bd7 {[%clk 0:00:22.3]} 16. Ne4 {[%clk 0:02:06.8]} 16... Nf6 {[%clk
0:00:21.6]} 17. Neg5 {[%clk 0:02:01.6]} 17... Qd8 {[%clk 0:00:15]} 18. Qa2
{[%clk 0:01:58.4]} 18... Rf8 {[%clk 0:00:11.1]} 19. Bc4 {[%clk 0:01:56.1]} 19...
Be8 {[%clk 0:00:02]} 20. Nd2 {[%clk 0:01:51]} 20... h6 {[%clk 0:00:02]} 21. Ngf3
{[%clk 0:01:50.8]} 1-0

[Event "*** Titled Tuesday Blitz"]
[Site "Chess.com"]
[Date "2020.11.10"]
[Round "2"]
[White "BanjoKazooieN64"]
[Black "IngOscarArdila"]
[Result "1-0"]
[WhiteElo "2395"]
[BlackElo "2122"]
[TimeControl "180+1"]
[EndTime "10:18:15 PST"]
[Termination "BanjoKazooieN64 won by checkmate"]

1. e4 {[%clk 0:02:50.9]} 1... e5 {[%clk 0:02:59.4]} 2. Nf3 {[%clk 0:02:50.9]}
2... Nc6 {[%clk 0:02:59.6]} 3. Bc4 {[%clk 0:02:50.1]} 3... Be7 {[%clk
0:02:58.8]} 4. d4 {[%clk 0:02:49.5]} 4... d6 {[%clk 0:02:57.1]} 5. dxe5 {[%clk
0:02:39.6]} 5... dxe5 {[%clk 0:02:54.5]} 6. Qxd8+ {[%clk 0:02:39.5]} 6... Bxd8
{[%clk 0:02:54.4]} 7. Nc3 {[%clk 0:02:39.7]} 7... Nge7 {[%clk 0:02:45.4]} 8. Be3
{[%clk 0:02:34.7]} 8... O-O {[%clk 0:02:44.7]} 9. O-O-O {[%clk 0:02:31.8]} 9...
Bg4 {[%clk 0:02:43.3]} 10. h3 {[%clk 0:02:31.9]} 10... Bh5 {[%clk 0:02:42.8]}
11. g4 {[%clk 0:02:31]} 11... Bg6 {[%clk 0:02:42]} 12. h4 {[%clk 0:02:30.8]}
12... h5 {[%clk 0:02:38.6]} 13. Ng5 {[%clk 0:02:23.2]} 13... Na5 {[%clk
0:02:25.4]} 14. Bd3 {[%clk 0:02:19.7]} 14... a6 {[%clk 0:01:43.5]} 15. Rdg1
{[%clk 0:02:06.8]} 15... b5 {[%clk 0:01:37.4]} 16. Bc5 {[%clk 0:02:05.4]} 16...
Nb7 {[%clk 0:01:31.8]} 17. Bxe7 {[%clk 0:02:01.8]} 17... Bxe7 {[%clk 0:01:31.7]}
18. Nd5 {[%clk 0:02:01.9]} 18... Bd8 {[%clk 0:01:26.3]} 19. Be2 {[%clk
0:01:24.6]} 19... hxg4 {[%clk 0:01:25.3]} 20. Bxg4 {[%clk 0:01:19.8]} 20... c6
{[%clk 0:01:18.5]} 21. Ne3 {[%clk 0:01:11.2]} 21... Bxg5 {[%clk 0:01:04.6]} 22.
hxg5 {[%clk 0:01:11.2]} 22... Bxe4 {[%clk 0:01:05]} 23. f3 {[%clk 0:01:10.5]}
23... Bg6 {[%clk 0:01:00.8]} 24. Nf5 {[%clk 0:00:50.1]} 24... Rfe8 {[%clk
0:01:00.1]} 25. Rh2 {[%clk 0:00:46.5]} 25... Kf8 {[%clk 0:00:59.5]} 26. Rh8#
{[%clk 0:00:45.5]} 1-0

[Event "*** Titled Tuesday Blitz"]
[Site "Chess.com"]
[Date "2020.11.10"]
[Round "2"]
[White "ChessWarrior7197"]
[Black "Love_craft"]
[Result "1-0"]
[WhiteElo "2999"]
[BlackElo "2605"]
[TimeControl "180+1"]
[EndTime "10:18:27 PST"]
[Termination "ChessWarrior7197 won on time"]

1. e4 {[%clk 0:03:00.9]} 1... g6 {[%clk 0:02:59.2]} 2. d4 {[%clk 0:03:00.8]}
2... Bg7 {[%clk 0:02:59.5]} 3. Nc3 {[%clk 0:03:01.4]} 3... d6 {[%clk 0:02:59.8]}
4. f4 {[%clk 0:03:01.9]} 4... a6 {[%clk 0:02:59.1]} 5. Nf3 {[%clk 0:03:02.2]}
5... b5 {[%clk 0:02:59.4]} 6. Bd3 {[%clk 0:03:02.8]} 6... Bb7 {[%clk 0:02:59.4]}
7. e5 {[%clk 0:03:03.4]} 7... e6 {[%clk 0:02:58.8]} 8. a4 {[%clk 0:03:02.3]}
8... b4 {[%clk 0:02:52.1]} 9. Ne4 {[%clk 0:02:59.7]} 9... a5 {[%clk 0:02:40.1]}
10. O-O {[%clk 0:02:58.9]} 10... Ne7 {[%clk 0:02:36]} 11. c3 {[%clk 0:02:54.7]}
11... O-O {[%clk 0:02:09.5]} 12. Bd2 {[%clk 0:02:50.4]} 12... Nbc6 {[%clk
0:01:32.9]} 13. Qe1 {[%clk 0:02:33.7]} 13... bxc3 {[%clk 0:01:00.9]} 14. bxc3
{[%clk 0:02:32.6]} 14... Ba6 {[%clk 0:00:53.6]} 15. Bb5 {[%clk 0:02:26.7]} 15...
Bb7 {[%clk 0:00:30.5]} 16. Qh4 {[%clk 0:02:21.1]} 16... Nf5 {[%clk 0:00:25.3]}
17. Qh3 {[%clk 0:02:21.2]} 17... Nxe5 {[%clk 0:00:13.2]} 18. fxe5 {[%clk
0:02:18.1]} 18... Bxe4 {[%clk 0:00:12.9]} 19. Ng5 {[%clk 0:02:19]} 19... h6
{[%clk 0:00:08.7]} 20. Nxe4 {[%clk 0:02:19]} 20... dxe5 {[%clk 0:00:09.6]} 21.
g4 {[%clk 0:02:15.9]} 21... Nxd4 {[%clk 0:00:08.5]} 22. cxd4 {[%clk 0:02:15.7]}
22... Qxd4+ {[%clk 0:00:09.4]} 23. Qe3 {[%clk 0:02:16.1]} 23... Rfd8 {[%clk
0:00:07]} 24. Rae1 {[%clk 0:02:09.5]} 24... f5 {[%clk 0:00:02.7]} 25. Qxd4
{[%clk 0:01:46.2]} 25... Rxd4 {[%clk 0:00:03.5]} 26. Bc6 {[%clk 0:01:47.1]}
26... Rb8 {[%clk 0:00:02.7]} 27. Bxa5 {[%clk 0:01:41.1]} 27... fxe4 {[%clk
0:00:01.5]} 28. Rxe4 {[%clk 0:01:41.4]} 1-0

[Event "*** Titled Tuesday Blitz"]
[Site "Chess.com"]
[Date "2020.11.10"]
[Round "2"]
[White "Andreikka"]
[Black "Ermito2020"]
[Result "1-0"]
[WhiteElo "2970"]
[BlackElo "2594"]
[TimeControl "180+1"]
[EndTime "10:18:27 PST"]
[Termination "Andreikka won by checkmate"]

1. e4 {[%clk 0:03:00.4]} 1... e6 {[%clk 0:02:58.6]} 2. d4 {[%clk 0:03:00]} 2...
d5 {[%clk 0:02:59]} 3. e5 {[%clk 0:03:00.2]} 3... c5 {[%clk 0:02:58.6]} 4. c3
{[%clk 0:03:00.9]} 4... Nc6 {[%clk 0:02:59.2]} 5. Nf3 {[%clk 0:03:00.6]} 5...
Qb6 {[%clk 0:02:59.8]} 6. a3 {[%clk 0:03:01.3]} 6... Nh6 {[%clk 0:02:59.5]} 7.
Bd3 {[%clk 0:03:00.1]} 7... cxd4 {[%clk 0:02:58.6]} 8. O-O {[%clk 0:02:58]} 8...
Nf5 {[%clk 0:02:55.6]} 9. Bxf5 {[%clk 0:02:57]} 9... exf5 {[%clk 0:02:55.9]} 10.
cxd4 {[%clk 0:02:57.6]} 10... Be6 {[%clk 0:02:56.5]} 11. Nc3 {[%clk 0:02:58.2]}
11... h6 {[%clk 0:02:50.9]} 12. h3 {[%clk 0:02:57.8]} 12... Be7 {[%clk
0:02:50.8]} 13. Ne2 {[%clk 0:02:57.5]} 13... O-O {[%clk 0:02:50.1]} 14. b3
{[%clk 0:02:48.4]} 14... Rac8 {[%clk 0:02:48.9]} 15. Nf4 {[%clk 0:02:47.8]}
15... Rc7 {[%clk 0:02:34.3]} 16. Qd3 {[%clk 0:02:41]} 16... Rfc8 {[%clk
0:02:31.7]} 17. Bd2 {[%clk 0:02:41.2]} 17... a6 {[%clk 0:02:24.1]} 18. Rfe1
{[%clk 0:02:31.9]} 18... Na7 {[%clk 0:02:22.7]} 19. Qe3 {[%clk 0:02:25.1]} 19...
Nb5 {[%clk 0:02:18.3]} 20. Nh5 {[%clk 0:02:20]} 20... Bf8 {[%clk 0:02:17]} 21.
Qf4 {[%clk 0:02:18.8]} 21... Nxa3 {[%clk 0:02:07.1]} 22. Nxg7 {[%clk 0:02:07.9]}
22... Kxg7 {[%clk 0:01:09.2]} 23. Qxh6+ {[%clk 0:02:07.2]} 23... Kg8 {[%clk
0:01:09.5]} 24. Qg5+ {[%clk 0:02:07.7]} 24... Kh7 {[%clk 0:01:09.6]} 25. Qh4+
{[%clk 0:02:07.1]} 25... Kg8 {[%clk 0:01:09.7]} 26. Bg5 {[%clk 0:01:52.6]} 26...
f6 {[%clk 0:00:53.5]} 27. Bxf6 {[%clk 0:01:52.6]} 27... Rh7 {[%clk 0:00:53]} 28.
Qg3+ {[%clk 0:01:52.5]} 28... Kf7 {[%clk 0:00:43.6]} 29. Ng5+ {[%clk 0:01:52.1]}
29... Ke8 {[%clk 0:00:42.9]} 30. Nxh7 {[%clk 0:01:51.7]} 30... Bb4 {[%clk
0:00:43.8]} 31. Qg6+ {[%clk 0:01:43.5]} 31... Bf7 {[%clk 0:00:42.1]} 32. Qg7
{[%clk 0:01:40.3]} 32... Nc2 {[%clk 0:00:38.1]} 33. e6 {[%clk 0:01:38.4]} 33...
Bxe6 {[%clk 0:00:22.5]} 34. Ng5 {[%clk 0:01:38.4]} 34... Nxe1 {[%clk 0:00:18.9]}
35. Rxe1 {[%clk 0:01:38.5]} 35... Rc6 {[%clk 0:00:16.2]} 36. Qf7# {[%clk
0:01:38.4]} 1-0

[Event "*** Titled Tuesday Blitz"]
[Site "Chess.com"]
[Date "2020.11.10"]
[Round "2"]
[White "andrzej"]
[Black "DenisQ"]
[Result "1-0"]
[WhiteElo "2365"]
[BlackElo "2640"]
[TimeControl "180+1"]
[EndTime "10:18:29 PST"]
[Termination "andrzej won by resignation"]

1. e4 {[%clk 0:03:00.9]} 1... c6 {[%clk 0:02:57.7]} 2. d4 {[%clk 0:02:59.6]}
2... d5 {[%clk 0:02:57.9]} 3. exd5 {[%clk 0:03:00.5]} 3... cxd5 {[%clk
0:02:57.6]} 4. Bd3 {[%clk 0:03:01.1]} 4... Nc6 {[%clk 0:02:56.7]} 5. c3 {[%clk
0:03:01.7]} 5... Nf6 {[%clk 0:02:56.8]} 6. Bf4 {[%clk 0:03:01.6]} 6... Bg4
{[%clk 0:02:55.3]} 7. Qb3 {[%clk 0:03:01.5]} 7... Qd7 {[%clk 0:02:54.9]} 8. Nd2
{[%clk 0:03:01.9]} 8... e6 {[%clk 0:02:54.4]} 9. Ngf3 {[%clk 0:03:02.4]} 9...
Bxf3 {[%clk 0:02:54.3]} 10. Nxf3 {[%clk 0:03:02]} 10... Bd6 {[%clk 0:02:54.9]}
11. Bxd6 {[%clk 0:03:00.3]} 11... Qxd6 {[%clk 0:02:55.8]} 12. O-O {[%clk
0:02:58.6]} 12... O-O {[%clk 0:02:55.3]} 13. Rae1 {[%clk 0:02:55.6]} 13... Qc7
{[%clk 0:02:54.9]} 14. Qc2 {[%clk 0:02:47.1]} 14... Rfc8 {[%clk 0:02:52.3]} 15.
Qe2 {[%clk 0:02:47.1]} 15... a6 {[%clk 0:02:49.5]} 16. Ne5 {[%clk 0:02:41]}
16... Nxe5 {[%clk 0:02:48.8]} 17. dxe5 {[%clk 0:02:41.9]} 17... Nd7 {[%clk
0:02:48.2]} 18. Qh5 {[%clk 0:02:28.7]} 18... g6 {[%clk 0:02:45.1]} 19. Qg5
{[%clk 0:02:28.5]} 19... Kg7 {[%clk 0:02:33.8]} 20. h4 {[%clk 0:02:20]} 20...
Qd8 {[%clk 0:02:17.7]} 21. Qg3 {[%clk 0:02:16.8]} 21... h5 {[%clk 0:02:16]} 22.
f4 {[%clk 0:02:16.6]} 22... Nc5 {[%clk 0:02:00.7]} 23. Bb1 {[%clk 0:02:09.3]}
23... Kh7 {[%clk 0:01:51.4]} 24. f5 {[%clk 0:02:02.8]} 24... exf5 {[%clk
0:01:48.2]} 25. Bxf5 {[%clk 0:01:45.1]} 25... Rc6 {[%clk 0:01:13]} 26. e6 {[%clk
0:01:40.7]} 26... Nxe6 {[%clk 0:00:32.4]} 27. Bxe6 {[%clk 0:01:36.7]} 27... Rxe6
{[%clk 0:00:18.2]} 28. Rxf7+ {[%clk 0:01:26.9]} 28... Kg8 {[%clk 0:00:17.9]} 1-0

[Event "*** Titled Tuesday Blitz"]
[Site "Chess.com"]
[Date "2020.11.10"]
[Round "2"]
[White "PawnEatingZombie"]
[Black "eightbyeightchess"]
[Result "0-1"]
[WhiteElo "2175"]
[BlackElo "2408"]
[TimeControl "180+1"]
[EndTime "10:18:29 PST"]
[Termination "eightbyeightchess won by resignation"]

1. d4 {[%clk 0:03:00.9]} 1... d5 {[%clk 0:02:59.1]} 2. c4 {[%clk 0:03:00.3]}
2... c6 {[%clk 0:02:59]} 3. Nc3 {[%clk 0:03:00.7]} 3... Nf6 {[%clk 0:02:59.2]}
4. e3 {[%clk 0:03:00.9]} 4... a6 {[%clk 0:02:58.7]} 5. Qc2 {[%clk 0:02:58]} 5...
Bg4 {[%clk 0:02:55.8]} 6. Nge2 {[%clk 0:02:55.7]} 6... e6 {[%clk 0:02:53.6]} 7.
h3 {[%clk 0:02:54.6]} 7... Bh5 {[%clk 0:02:53.9]} 8. Nf4 {[%clk 0:02:54.2]} 8...
Bg6 {[%clk 0:02:52.6]} 9. Nxg6 {[%clk 0:02:54]} 9... hxg6 {[%clk 0:02:53.5]} 10.
Be2 {[%clk 0:02:47.9]} 10... Bd6 {[%clk 0:02:52.9]} 11. Bd2 {[%clk 0:02:42]}
11... Nbd7 {[%clk 0:02:52.5]} 12. c5 {[%clk 0:02:36.2]} 12... Bc7 {[%clk
0:02:52.2]} 13. f4 {[%clk 0:02:36.5]} 13... Nh5 {[%clk 0:02:46.4]} 14. O-O
{[%clk 0:02:15.8]} 14... Ng3 {[%clk 0:02:38.9]} 15. Rf2 {[%clk 0:02:01.9]} 15...
Ba5 {[%clk 0:02:36.2]} 16. Bd3 {[%clk 0:01:44.9]} 16... Bxc3 {[%clk 0:02:29.1]}
17. bxc3 {[%clk 0:01:40.9]} 17... Nf6 {[%clk 0:02:29.3]} 18. Be1 {[%clk
0:01:29.8]} 18... Nfe4 {[%clk 0:02:26.6]} 19. Rf3 {[%clk 0:01:29.8]} 19... Nf5
{[%clk 0:02:05.9]} 20. Bxe4 {[%clk 0:01:28.9]} 20... dxe4 {[%clk 0:02:06.8]} 21.
Qxe4 {[%clk 0:01:28.6]} 21... O-O {[%clk 0:02:03.7]} 22. Qc2 {[%clk 0:01:24.1]}
22... Nh4 {[%clk 0:01:43.2]} 23. Bxh4 {[%clk 0:01:22]} 23... Qxh4 {[%clk
0:01:44.1]} 24. Rff1 {[%clk 0:01:16.6]} 24... Rab8 {[%clk 0:01:39.3]} 25. Rab1
{[%clk 0:01:16.1]} 25... Rfd8 {[%clk 0:01:35.9]} 26. Qf2 {[%clk 0:01:15.6]}
26... Qf6 {[%clk 0:01:34.4]} 27. Rb3 {[%clk 0:01:10.3]} 27... Qf5 {[%clk
0:01:33.2]} 28. Qe2 {[%clk 0:01:00.8]} 28... Qd5 {[%clk 0:01:25.3]} 29. Rfb1
{[%clk 0:00:58.3]} 29... Qd7 {[%clk 0:01:13.4]} 30. e4 {[%clk 0:00:52]} 30...
Qe7 {[%clk 0:01:08.7]} 31. Qxa6 {[%clk 0:00:44.1]} 31... bxa6 {[%clk 0:01:09.6]}
32. Rxb8 {[%clk 0:00:43.6]} 32... Rxb8 {[%clk 0:01:09.3]} 33. Rxb8+ {[%clk
0:00:43.4]} 33... Kh7 {[%clk 0:01:09]} 34. g4 {[%clk 0:00:40.3]} 34... Qh4
{[%clk 0:01:07.3]} 0-1

[Event "*** Titled Tuesday Blitz"]
[Site "Chess.com"]
[Date "2020.11.10"]
[Round "2"]
[White "catzapto"]
[Black "Xeniya2005"]
[Result "0-1"]
[WhiteElo "2132"]
[BlackElo "2398"]
[TimeControl "180+1"]
[EndTime "10:18:29 PST"]
[Termination "Xeniya2005 won by checkmate"]

1. e4 {[%clk 0:03:00.9]} 1... e6 {[%clk 0:02:59.4]} 2. d4 {[%clk 0:03:00.9]}
2... d5 {[%clk 0:02:59.5]} 3. Nd2 {[%clk 0:03:01.2]} 3... c5 {[%clk 0:02:59.3]}
4. Ngf3 {[%clk 0:02:59.2]} 4... cxd4 {[%clk 0:02:57.1]} 5. Nxd4 {[%clk
0:02:58.8]} 5... Nc6 {[%clk 0:02:57]} 6. Bb5 {[%clk 0:02:55.5]} 6... Bd7 {[%clk
0:02:55]} 7. Nxc6 {[%clk 0:02:50.7]} 7... bxc6 {[%clk 0:02:53.7]} 8. Bd3 {[%clk
0:02:50.9]} 8... g6 {[%clk 0:02:51.6]} 9. O-O {[%clk 0:02:50.6]} 9... Bg7 {[%clk
0:02:51.1]} 10. f4 {[%clk 0:02:48.7]} 10... Ne7 {[%clk 0:02:49.5]} 11. c3 {[%clk
0:02:48.7]} 11... c5 {[%clk 0:02:46.8]} 12. Nf3 {[%clk 0:02:45.8]} 12... O-O
{[%clk 0:02:42.6]} 13. Qe1 {[%clk 0:02:24.8]} 13... Bc6 {[%clk 0:02:37.7]} 14.
e5 {[%clk 0:02:18.7]} 14... Qd7 {[%clk 0:02:33.2]} 15. Qh4 {[%clk 0:02:14]}
15... f6 {[%clk 0:02:17.1]} 16. exf6 {[%clk 0:02:11]} 16... Bxf6 {[%clk
0:02:14.4]} 17. Ng5 {[%clk 0:02:10.1]} 17... Nf5 {[%clk 0:02:12.5]} 18. Bxf5
{[%clk 0:02:08.7]} 18... exf5 {[%clk 0:02:10.4]} 19. Re1 {[%clk 0:02:06.7]}
19... Rae8 {[%clk 0:02:02]} 20. Bd2 {[%clk 0:02:06.7]} 20... d4 {[%clk
0:01:51.9]} 21. Rxe8 {[%clk 0:02:06.3]} 21... Rxe8 {[%clk 0:01:50]} 22. Re1
{[%clk 0:02:06.1]} 22... Be4 {[%clk 0:01:45.5]} 23. Qh6 {[%clk 0:01:55]} 23...
Re7 {[%clk 0:01:37]} 24. h4 {[%clk 0:01:43.8]} 24... dxc3 {[%clk 0:01:24.1]} 25.
Bxc3 {[%clk 0:01:42.7]} 25... Bxc3 {[%clk 0:01:23]} 26. bxc3 {[%clk 0:01:43]}
26... Qd2 {[%clk 0:01:22.6]} 27. Rxe4 {[%clk 0:01:31.2]} 27... fxe4 {[%clk
0:01:21.3]} 28. h5 {[%clk 0:01:28.6]} 28... Qe1+ {[%clk 0:01:19.9]} 29. Kh2
{[%clk 0:01:26]} 29... Qh4+ {[%clk 0:01:19.4]} 30. Nh3 {[%clk 0:01:19.3]} 30...
e3 {[%clk 0:01:16.1]} 31. f5 {[%clk 0:01:09]} 31... e2 {[%clk 0:01:09.9]} 32.
fxg6 {[%clk 0:01:07.1]} 32... e1=Q {[%clk 0:01:05.1]} 33. gxh7+ {[%clk
0:01:07.4]} 33... Rxh7 {[%clk 0:01:04.4]} 34. Qg6+ {[%clk 0:01:07.1]} 34... Rg7
{[%clk 0:01:04.1]} 35. Qc6 {[%clk 0:00:56.6]} 35... Qhg3# {[%clk 0:01:02.5]} 0-1

[Event "*** Titled Tuesday Blitz"]
[Site "Chess.com"]
[Date "2020.11.10"]
[Round "2"]
[White "Chessdreamer2020"]
[Black "GrigorGrigorov"]
[Result "0-1"]
[WhiteElo "2511"]
[BlackElo "2744"]
[TimeControl "180+1"]
[EndTime "10:18:30 PST"]
[Termination "GrigorGrigorov won by resignation"]

1. e4 {[%clk 0:03:00.9]} 1... c6 {[%clk 0:03:00]} 2. Nc3 {[%clk 0:02:59.7]} 2...
d5 {[%clk 0:02:59.8]} 3. Nf3 {[%clk 0:03:00]} 3... dxe4 {[%clk 0:02:59.7]} 4.
Nxe4 {[%clk 0:02:59.2]} 4... Nf6 {[%clk 0:03:00]} 5. Qe2 {[%clk 0:02:59.4]} 5...
Nxe4 {[%clk 0:03:00]} 6. Qxe4 {[%clk 0:02:59.3]} 6... Be6 {[%clk 0:03:00.1]} 7.
d4 {[%clk 0:02:58.6]} 7... Bd5 {[%clk 0:02:58.1]} 8. Qg4 {[%clk 0:02:50.3]} 8...
Bxf3 {[%clk 0:02:56.9]} 9. gxf3 {[%clk 0:02:44.2]} 9... g6 {[%clk 0:02:56.3]}
10. c3 {[%clk 0:02:43.4]} 10... Bg7 {[%clk 0:02:55.8]} 11. Be3 {[%clk
0:02:39.4]} 11... Nd7 {[%clk 0:02:55.3]} 12. O-O-O {[%clk 0:02:36.3]} 12... Nf6
{[%clk 0:02:55.3]} 13. Qh4 {[%clk 0:02:31]} 13... Qd5 {[%clk 0:02:51.6]} 14. Kb1
{[%clk 0:02:30.9]} 14... Qxf3 {[%clk 0:02:50.8]} 15. Bh3 {[%clk 0:02:28.5]}
15... e6 {[%clk 0:02:31]} 16. Rhe1 {[%clk 0:02:23.1]} 16... Qe4+ {[%clk
0:02:25.4]} 17. Qxe4 {[%clk 0:02:21.5]} 17... Nxe4 {[%clk 0:02:26.3]} 18. Bg2
{[%clk 0:02:20.9]} 18... Nf6 {[%clk 0:02:25.2]} 19. b4 {[%clk 0:02:11.8]} 19...
O-O {[%clk 0:02:23.1]} 20. Kc2 {[%clk 0:02:02.6]} 20... Nd5 {[%clk 0:02:21.3]}
21. Bd2 {[%clk 0:02:02.2]} 21... b5 {[%clk 0:02:20]} 22. a4 {[%clk 0:01:57.2]}
22... a5 {[%clk 0:02:09.6]} 23. axb5 {[%clk 0:01:51.7]} 23... axb4 {[%clk
0:01:56.8]} 24. c4 {[%clk 0:01:51.7]} 24... Ra2+ {[%clk 0:01:40.7]} 25. Kb1
{[%clk 0:01:44.7]} 25... Rfa8 {[%clk 0:01:39.6]} 26. cxd5 {[%clk 0:01:42]} 26...
Bxd4 {[%clk 0:01:32.2]} 27. Bc1 {[%clk 0:01:29.1]} 27... Bc3 {[%clk 0:01:20.1]}
28. Re3 {[%clk 0:01:07.4]} 28... Rxf2 {[%clk 0:01:18]} 29. Rxc3 {[%clk
0:01:02.3]} 29... bxc3 {[%clk 0:01:16.4]} 30. Be4 {[%clk 0:00:55.2]} 30... exd5
{[%clk 0:01:10.6]} 31. Bc2 {[%clk 0:00:54]} 31... Rb8 {[%clk 0:01:06.2]} 32. Ba4
{[%clk 0:00:53.2]} 32... Rxb5+ {[%clk 0:01:02.4]} 0-1